bitfinex-derivatives/quotes_SOLF0:USTF0_20250207
["timestamp","ask_amount","ask_price","bid_price","bid_amount"]
[1738926252167,5.0658,197.31,197.3,4.05]
[1738926252472,5.0661,197.3,197.29,0.03532036]
[1738926252772,5.0678,197.24,197.21,1.4929]
[1738926253576,5.0682,197.22,197.21,4.05]
[1738926256169,0.03391547,197.23,197.21,4.05]
[1738926256882,0.03391547,197.23,197.21,9.1182]
[1738926257674,0.03391547,197.23,197.22,5.0682]
[1738926257872,16.66776438,197.33,197.21,4.05]
[1738926258281,5.0667,197.28,197.23,5.0677]
[1738926258471,13.44790806,197.35,197.23,16.66776438]
[1738926258672,1.5623,197.35,197.23,16.66776438]
[1738926259177,0.03356534,197.31,197.27,0.03528249]
[1738926259676,5.0662,197.3,197.27,0.03528249]
[1738926259876,0.03356534,197.31,197.27,0.03528249]
[1738926260579,0.03356534,197.31,197.27,5.10198249]
[1738926261172,0.03356534,197.31,197.27,0.03528249]
[1738926261479,16.66776438,197.39,197.29,16.66776438]
[1738926262073,16.66776438,197.39,197.26,16.66776438]
[1738926262776,0.03739354,197.34,197.31,0.03664632]
[1738926264681,5.10249354,197.34,197.31,0.03664632]
[1738926265085,0.03739354,197.34,197.31,0.03664632]
[1738926265285,0.03739354,197.34,197.32,5.0656]
[1738926265472,0.03739354,197.34,197.31,0.03664632]
[1738926265677,0.03739354,197.34,197.31,5.10234632]
[1738926267382,0.03739354,197.34,197.31,0.03664632]
[1738926267580,0.03739354,197.34,197.32,16.66776438]
[1738926267983,0.03739354,197.34,197.33,5.0653]
[1738926268179,0.03739354,197.34,197.31,0.03664632]
[1738926268580,5.10269354,197.34,197.31,0.03664632]
[1738926269288,0.03739354,197.34,197.31,0.03664632]
[1738926269483,5.0655,197.33,197.31,0.03664632]
[1738926270490,0.03739354,197.34,197.31,0.03664632]
[1738926270690,5.0656,197.32,197.31,0.03664632]
[1738926271289,0.03739354,197.34,197.31,0.03664632]
[1738926271490,0.03739354,197.34,197.31,5.10224632]
[1738926272885,16.66776438,197.42,197.32,16.66776438]
[1738926273083,18.16686438,197.45,197.32,16.66776438]
[1738926273487,5.064,197.39,197.35,5.0648]
[1738926274086,5.1009186,197.39,197.35,5.09700046]
[1738926274782,5.1009186,197.39,197.35,0.03220046]
[1738926275994,5.0641,197.38,197.35,4.08220046]
[1738926276194,5.0641,197.38,197.35,17.51220046]
[1738926276392,0.0369186,197.39,197.35,17.51220046]
[1738926276993,5.0643,197.37,197.35,17.51220046]
[1738926277897,5.0641,197.38,197.35,17.51220046]
[1738926279505,0.0369186,197.39,197.35,17.51220046]
[1738926279702,5.0646,197.36,197.35,17.51220046]
[1738926280296,5.0643,197.37,197.35,17.51220046]
[1738926280594,0.0369186,197.39,197.35,17.51220046]
[1738926280797,5.0646,197.36,197.35,17.51220046]
[1738926283101,5.0646,197.36,197.35,4.08220046]
[1738926284993,5.0646,197.36,197.35,4.05]
[1738926285198,5.0646,197.36,197.35,4.6e-07]
[1738926285400,5.0648,197.35,197.34,4.6e-07]
[1738926285598,16.66776438,197.36,197.23,21.35956438]
[1738926286102,5.066,197.31,197.26,5.0669]
[1738926286402,5.10412247,197.31,197.28,0.03894626]
[1738926286899,5.0662,197.3,197.28,0.03894626]
[1738926288512,0.03812247,197.31,197.28,0.03894626]
[1738926288802,5.0664,197.29,197.28,0.03894626]
[1738926294408,5.10402247,197.31,197.28,0.03894626]
[1738926294704,0.03812247,197.31,197.28,0.03894626]
[1738926295507,5.0663,197.29,197.28,0.03894626]
[1738926298308,5.0663,197.29,197.28,4.626e-05]
[1738926301106,5.0676,197.24,197.23,13.12]
[1738926301315,16.66776438,197.24,197.14,16.66776438]
[1738926301708,16.66776438,197.24,197.14,5.0702]
[1738926302211,0.03236569,197.21,197.17,0.035301]
[1738926302808,5.0687,197.2,197.17,0.035301]
[1738926304008,0.03236569,197.21,197.17,0.035301]
[1738926305609,5.0687,197.2,197.17,0.035301]
[1738926305810,0.03236569,197.21,197.17,0.035301]
[1738926306108,5.0687,197.2,197.17,0.035301]
[1738926306711,0.03236569,197.21,197.17,16.70306538]
[1738926307212,0.03236569,197.21,197.18,5.0691]
[1738926307412,0.03236569,197.21,197.17,16.70306538]
[1738926307713,0.03236569,197.21,197.18,5.0691]
[1738926308610,0.03236569,197.21,197.17,16.70306538]
[1738926308816,5.0676,197.25,197.2,5.0687]
[1738926309114,5.0676,197.25,197.17,16.66776438]
[1738926309320,5.0676,197.25,197.21,5.0682]
[1738926309611,18.15936438,197.33,197.2,16.66776438]
[1738926309814,56.14186569,197.36,197.27,21.73436438]
[1738926310007,0.03645511,197.28,197.27,16.66776438]
[1738926310208,72.80963007,197.36,197.24,16.66776438]
[1738926310409,0.03582637,197.29,197.26,0.03813959]
[1738926310805,5.0661,197.3,197.26,0.03813959]
[1738926311009,0.03752894,197.29,197.26,0.03813959]
[1738926312117,16.66776438,197.4,197.27,16.66776438]
[1738926312414,5.0642,197.38,197.32,5.0656]
[1738926312717,68.51721341,197.44,197.36,5.0645]
[1738926312914,68.51721341,197.44,197.34,16.66776438]
[1738926313417,0.03749244,197.41,197.37,0.03690071]
[1738926314415,0.03749244,197.41,197.37,21.76896509]
[1738926314613,0.03749244,197.41,197.38,1.6237]
[1738926314916,68.51721341,197.44,197.38,1.6237]
[1738926315316,18.46436438,197.52,197.38,1.6237]
[1738926315817,5.0623,197.45,197.38,6.6877]
[1738926316014,0.0321506,197.47,197.43,0.03233608]
[1738926316623,5.0939506,197.47,197.43,0.03233608]
[1738926317119,0.0321506,197.47,197.43,0.03233608]
[1738926319216,0.0321506,197.47,197.43,16.70010046]
[1738926320218,0.0321506,197.47,197.43,0.03233608]
[1738926320413,0.0321506,197.47,197.43,1.94233608]
[1738926320814,5.0625,197.44,197.43,1.94233608]
[1738926321114,5.0625,197.44,197.43,10.47233608]
[1738926321917,5.0625,197.44,197.43,1.94233608]
[1738926333418,5.0625,197.44,197.43,11.68233608]
[1738926333624,5.0625,197.44,197.43,11.65]
[1738926333824,5.0625,197.44,197.43,3.73513608]
[1738926334231,5.0625,197.44,197.43,3.43016741]
[1738926334531,5.0633,197.39,197.35,3.0778]
[1738926334927,5.09523089,197.39,197.35,3.11356481]
[1738926335123,0.03193089,197.39,197.35,3.11356481]
[1738926335330,16.66776438,197.5,197.37,16.66776438]
[1738926335826,5.062,197.45,197.39,5.0632]
[1738926336431,0.03189375,197.44,197.4,0.03713704]
[1738926336631,5.09389375,197.44,197.4,0.03713704]
[1738926336832,0.03189375,197.44,197.4,0.03713704]
[1738926337732,5.0627,197.42,197.4,0.03713704]
[1738926338232,5.0628,197.41,197.4,0.03713704]
[1738926339833,0.03189375,197.44,197.4,0.03713704]
[1738926340026,5.0625,197.42,197.4,0.03713704]
[1738926340233,0.03189375,197.44,197.4,0.03713704]
[1738926341334,5.09399375,197.44,197.4,0.03713704]
[1738926341534,0.03189375,197.44,197.4,0.03713704]
[1738926342035,5.0625,197.43,197.4,0.03713704]
[1738926342538,0.03189375,197.44,197.4,5.10023704]
[1738926343529,0.03189375,197.44,197.4,0.03713704]
[1738926344936,5.0633,197.41,197.4,0.03713704]
[1738926345440,5.0645,197.36,197.35,12.87]
[1738926345837,5.0645,197.36,197.3,3.54]
[1738926346231,5.0645,197.36,197.29,3.1956]
[1738926346432,5.0648,197.35,197.29,8.2617]
[1738926346740,5.0648,197.35,197.33,0.03876522]
[1738926347740,0.03478958,197.36,197.33,0.03876522]
[1738926348040,5.065,197.34,197.33,0.03876522]
[1738926369570,5.065,197.34,197.33,12.61876522]
[1738926372173,21.73276438,197.34,197.33,12.61876522]
[1738926373269,5.065,197.34,197.33,12.61876522]
[1738926373676,0.03478958,197.36,197.33,12.61876522]
[1738926373879,0.03478958,197.36,197.33,29.2865296]
[1738926374075,12.17920287,197.44,197.34,3.0722]
[1738926374376,5.063,197.42,197.37,5.0641]
[1738926374570,56.14186569,197.45,197.36,16.66776438]
[1738926375171,0.03281187,197.42,197.39,0.03312951]
[1738926376176,5.09581187,197.42,197.39,0.03312951]
[1738926376379,0.03281187,197.42,197.39,0.03312951]
[1738926376878,5.0634,197.4,197.39,0.03312951]
[1738926377174,5.0634,197.4,197.39,2.951e-05]
[1738926377372,16.70057625,197.42,197.33,12.58]
[1738926377572,16.66776438,197.37,197.33,12.58]
[1738926378375,16.66776438,197.37,197.33,12.6189529]
[1738926378576,0.03235314,197.37,197.33,12.6189529]
[1738926379381,5.0633,197.41,197.33,29.28671728]
[1738926379580,12.25509916,197.47,197.33,29.28671728]
[1738926379581,16.66776438,197.45,197.34,1.6045]
[1738926379879,16.66776438,197.45,197.37,5.0641]
[1738926380078,12.25509916,197.47,197.37,5.0641]
[1738926380280,18.19656438,197.48,197.37,5.0641]
[1738926380478,0.03501758,197.44,197.4,0.03572342]
[1738926380779,5.0627,197.43,197.4,0.03572342]
[1738926380976,0.03501758,197.44,197.4,9.54572342]
[1738926383471,0.03501758,197.44,197.41,5.063]
[1738926383675,0.03501758,197.44,197.4,9.54572342]
[1738926384484,0.03501758,197.44,197.4,11.13642342]
[1738926384878,0.03501758,197.44,197.4,16.19982342]
[1738926385078,0.03501758,197.44,197.4,11.13642342]
[1738926385684,0.03501758,197.44,197.41,5.0633]
[1738926385885,5.0619,197.47,197.4,11.13642342]
[1738926386484,5.0619,197.47,197.42,5.063]
[1738926386780,5.0619,197.47,197.4,11.13642342]
[1738926386781,5.062,197.46,197.4,11.13642342]
[1738926387181,5.062,197.46,197.41,5.0632]
[1738926387378,5.062,197.46,197.4,11.13642342]
[1738926387586,5.062,197.46,197.42,5.063]
[1738926389088,16.66776438,197.54,197.42,16.66776438]
[1738926389293,16.66776438,197.54,197.43,1.6123]
[1738926389484,16.66776438,197.54,197.46,0.0379417]
[1738926390388,16.66776438,197.54,197.46,10.9579417]
[1738926391383,16.66776438,197.51,197.46,10.9579417]
[1738926391587,16.66776438,197.51,197.46,10.92]
[1738926391785,16.66776438,197.51,197.47,0.03347001]
[1738926392091,16.66776438,197.48,197.47,0.03347001]
[1738926392286,21.72926438,197.48,197.47,0.03347001]
[1738926392491,16.66776438,197.48,197.46,10.92]
[1738926392792,16.66776438,197.48,197.46,2.8533]
[1738926392988,16.66776438,197.48,197.37,1.5896]
[1738926393188,16.66776438,197.5,197.34,1.6282]
[1738926393189,16.66776438,197.42,197.34,1.6282]
[1738926393384,5.0646,197.36,197.31,1.5124]
[1738926393692,0.03347001,197.4,197.36,0.03771453]
[1738926393891,16.66776438,197.42,197.31,1.5124]
[1738926394190,16.66776438,197.42,197.36,0.03594389]
[1738926394191,0.03347001,197.4,197.36,0.03594389]
[1738926394488,5.09697001,197.4,197.36,0.03594389]
[1738926395190,0.03347001,197.4,197.36,0.03594389]
[1738926396494,5.09707001,197.4,197.36,0.03594389]
[1738926396695,0.03347001,197.4,197.36,0.03594389]
[1738926397484,5.0641,197.38,197.36,0.03594389]
[1738926397689,0.03347001,197.4,197.36,0.03594389]
[1738926398194,5.064,197.39,197.36,0.03594389]
[1738926399692,0.03347001,197.4,197.36,0.03594389]
[1738926399693,5.09707001,197.4,197.36,0.03594389]
[1738926402391,0.03347001,197.4,197.36,0.03594389]
[1738926402597,5.0639,197.39,197.36,0.03594389]
[1738926402791,0.03347001,197.4,197.36,0.03594389]
[1738926403187,5.0638,197.39,197.36,0.03594389]
[1738926403492,0.03347001,197.4,197.36,0.03594389]
[1738926403891,5.0643,197.37,197.36,0.03594389]
[1738926412201,5.0641,197.38,197.36,0.03594389]
[1738926412994,0.03347001,197.4,197.36,0.03594389]
[1738926413698,0.03347001,197.4,197.36,3.19514389]
[1738926414301,0.03347001,197.4,197.38,5.064]
[1738926416699,0.03347001,197.4,197.37,29.57776438]
[1738926416897,28.93422387,197.51,197.4,5.0635]
[1738926417096,16.66776438,197.51,197.37,29.57776438]
[1738926417298,16.66776438,197.51,197.4,16.66776438]
[1738926417904,5.0615,197.48,197.44,0.03495957]
[1738926418201,16.66776438,197.51,197.44,0.03495957]
[1738926419904,5.0622,197.45,197.44,0.03495957]
[1738926422299,21.72996438,197.45,197.44,0.03495957]
[1738926423902,5.0638,197.39,197.37,12.91]
[1738926424305,16.66776438,197.42,197.37,12.91]
[1738926424905,5.064,197.38,197.37,12.91]
[1738926425703,0.03219694,197.41,197.37,12.91]
[1738926426109,5.064,197.38,197.37,12.91]
[1738926428800,5.064,197.38,197.37,5.1374]
[1738926429008,5.0643,197.37,197.36,6.637e-05]
[1738926432609,0.03219694,197.41,197.36,6.637e-05]
[1738926433511,0.03219694,197.41,197.37,16.66776438]
[1738926433715,0.03219694,197.41,197.38,1.6268]
[1738926434209,0.03219694,197.41,197.39,5.0636]
[1738926434810,0.03219694,197.41,197.38,6.6908]
[1738926435414,56.14186569,197.47,197.38,1.6268]
[1738926435606,31.93813318,197.54,197.4,16.66776438]
[1738926435607,56.14186569,197.53,197.4,16.66776438]
[1738926435907,5.0614,197.49,197.43,5.0627]
[1738926436115,56.14186569,197.53,197.4,16.66776438]
[1738926436413,68.42916156,197.53,197.4,16.66776438]
[1738926436615,0.03238386,197.48,197.44,0.03841196]
[1738926437203,0.03238386,197.48,197.45,5.0622]
[1738926437815,56.14186569,197.53,197.44,0.03841196]
[1738926438412,56.14186569,197.53,197.48,5.0613]
[1738926438817,5.0597,197.55,197.48,5.0613]
[1738926439016,16.66776438,197.57,197.49,0.03804086]
[1738926439405,16.66776438,197.57,197.49,11.44804086]
[1738926439612,5.0597,197.55,197.49,11.44804086]
[1738926440117,5.0594,197.56,197.5,5.0609]
[1738926440910,56.14186569,197.58,197.5,5.0609]
[1738926440911,5.0592,197.57,197.5,5.0609]
[1738926441115,56.14186569,197.58,197.49,28.11580524]
[1738926441819,5.0592,197.57,197.49,28.11580524]
[1738926442120,16.66776438,197.63,197.49,28.11580524]
[1738926442317,16.66776438,197.6,197.49,28.11580524]
[1738926442616,16.66776438,197.6,197.53,0.0359834]
[1738926443120,16.66776438,197.63,197.53,0.0359834]
[1738926443419,16.66776438,197.63,197.52,5.0605]
[1738926443616,16.66776438,197.63,197.56,0.03562785]
[1738926444517,5.0588,197.59,197.56,0.03562785]
[1738926444921,16.66776438,197.63,197.56,0.03562785]
[1738926445924,5.0589,197.59,197.56,0.03562785]
[1738926446120,16.66776438,197.63,197.56,0.03562785]
[1738926446824,5.0591,197.58,197.56,0.03562785]
[1738926447525,5.0592,197.57,197.56,0.03562785]
[1738926448727,21.72696438,197.57,197.56,2.785e-05]
[1738926449024,5.061,197.51,197.46,1.6342]
[1738926449322,16.66776438,197.53,197.46,1.6342]
[1738926449721,16.66776438,197.53,197.46,13.5742]
[1738926449918,5.0607,197.51,197.48,0.03769576]
[1738926450125,0.03817824,197.51,197.48,0.03769576]
[1738926451022,0.03817824,197.51,197.49,5.061]
[1738926451614,0.03817824,197.51,197.5,5.061]
[1738926451921,5.06,197.54,197.5,5.061]
[1738926452225,5.0596,197.56,197.51,5.0606]
[1738926452524,5.0596,197.56,197.49,16.66776438]
[1738926452928,16.66776438,197.62,197.49,16.66776438]
[1738926453113,16.66776438,197.62,197.51,0.03299945]
[1738926453727,5.0599,197.55,197.51,5.09369945]
[1738926454021,16.66776438,197.62,197.51,0.03299945]
[1738926454422,5.0587,197.59,197.51,5.09359945]
[1738926454621,16.66776438,197.62,197.51,5.09359945]
[1738926455028,5.0596,197.56,197.51,5.09359945]
[1738926455724,5.0597,197.55,197.51,5.09359945]
[1738926456922,5.06,197.54,197.51,0.03299945]
[1738926457523,5.0604,197.53,197.51,0.03299945]
[1738926458018,16.66776438,197.59,197.51,0.03299945]
[1738926458229,5.0605,197.52,197.51,0.03299945]
[1738926458829,16.66776438,197.59,197.51,0.03299945]
[1738926460228,5.0601,197.54,197.51,0.03299945]
[1738926461129,5.0601,197.54,197.51,11.44299945]
[1738926462428,5.0605,197.52,197.51,11.44299945]
[1738926462927,16.66776438,197.62,197.51,11.44299945]
[1738926463231,16.66776438,197.62,197.51,11.41]
[1738926463425,16.66776438,197.62,197.55,0.0329167]
[1738926463931,5.0594,197.56,197.55,0.0329167]
[1738926469231,5.0594,197.56,197.55,9.3029167]
[1738926470633,5.0594,197.56,197.55,8.8029167]
[1738926470833,5.0594,197.56,197.47,1.5725]
[1738926471022,5.0594,197.56,197.49,5.061]
[1738926471225,5.0594,197.56,197.47,1.0725]
[1738926471431,5.0594,197.56,197.47,0.5725]
[1738926471735,0.03304507,197.53,197.5,0.03629915]
[1738926471937,0.03304507,197.53,197.5,5.09709915]
[1738926472236,0.03304507,197.53,197.5,0.03629915]
[1738926472734,0.03304507,197.53,197.51,5.0605]
[1738926473439,0.03304507,197.53,197.52,5.0605]
[1738926477343,5.0587,197.59,197.55,5.0595]
[1738926477635,72.80963007,197.65,197.55,5.0595]
[1738926477834,72.80963007,197.65,197.52,16.66776438]
[1738926478035,5.0595,197.56,197.52,5.0603]
[1738926478231,16.66776438,197.59,197.47,10.06]
[1738926478442,16.66776438,197.56,197.52,0.03871203]
[1738926478635,16.66776438,197.56,197.47,15.1215]
[1738926478835,16.66776438,197.56,197.5,0.03842089]
[1738926479839,5.0607,197.51,197.5,0.03842089]
[1738926483543,16.66776438,197.56,197.5,0.03842089]
[1738926484745,5.0597,197.56,197.5,0.03842089]
[1738926484941,19.31876438,197.59,197.5,0.03842089]
[1738926485243,5.0599,197.55,197.5,5.09932089]
[1738926485445,4.25638895,197.54,197.5,0.03842089]
[1738926485938,5.0607,197.51,197.5,0.03842089]
[1738926486743,9.31708895,197.51,197.5,0.03842089]
[1738926492549,4.25638895,197.51,197.5,0.03842089]
[1738926496052,9.31708895,197.51,197.5,0.03842089]
[1738926497051,5.0615,197.48,197.47,10.56]
[1738926497456,16.66776438,197.5,197.41,5.0631]
[1738926498146,0.03694432,197.47,197.44,0.03511976]
[1738926498750,0.03694432,197.47,197.44,10.70511976]
[1738926499358,16.66776438,197.56,197.44,10.70511976]
[1738926499551,5.0602,197.54,197.49,5.0611]
[1738926499751,16.66776438,197.56,197.49,5.0611]
[1738926500255,5.06,197.54,197.5,5.0609]
[1738926500456,56.14186569,197.57,197.51,0.03263502]
[1738926500855,56.14186569,197.57,197.51,5.09313502]
[1738926501553,56.14186569,197.57,197.51,0.03263502]
[1738926501762,5.0599,197.55,197.51,0.03263502]
[1738926502066,56.14186569,197.57,197.51,0.03263502]
[1738926502266,61.20126569,197.57,197.52,5.0602]
[1738926502458,61.20126569,197.57,197.51,0.03263502]
[1738926502459,56.14186569,197.57,197.51,0.03263502]
[1738926502763,56.14186569,197.57,197.52,16.66776438]
[1738926503457,56.14186569,197.57,197.55,5.0597]
[1738926503963,56.14186569,197.57,197.53,5.0599]
[1738926504167,5.0589,197.58,197.53,5.0599]
[1738926504360,57.71706569,197.64,197.52,16.66776438]
[1738926504556,5.0583,197.61,197.55,5.0596]
[1738926504756,57.71706569,197.64,197.56,0.03696838]
[1738926506064,5.0578,197.63,197.56,0.03696838]
[1738926506263,56.14186569,197.64,197.58,5.0589]
[1738926506460,56.14186569,197.64,197.56,0.03696838]
[1738926506663,56.14186569,197.64,197.56,3.11256838]
[1738926506866,56.14186569,197.64,197.56,14.51256838]
[1738926507060,56.14186569,197.64,197.58,16.66776438]
[1738926507268,56.14186569,197.69,197.58,16.66776438]
[1738926507561,56.14186569,197.69,197.64,5.0574]
[1738926507764,5.0564,197.68,197.62,0.03399482]
[1738926508269,56.14186569,197.69,197.62,0.03399482]
[1738926509167,16.66776438,197.68,197.62,0.03399482]
[1738926509564,5.0576,197.63,197.62,0.03399482]
[1738926512367,16.66776438,197.65,197.56,11.4]
[1738926512671,16.66776438,197.62,197.56,11.4]
[1738926512871,16.66776438,197.65,197.56,11.4]
[1738926513567,16.66776438,197.65,197.59,0.0330425]
[1738926513874,0.03275759,197.62,197.59,0.0330425]
[1738926515373,5.0582,197.61,197.59,0.0330425]
[1738926515969,5.0582,197.61,197.59,12.1930425]
[1738926516372,5.09075759,197.62,197.59,12.1930425]
[1738926516570,0.03275759,197.62,197.59,12.1930425]
[1738926517073,0.03275759,197.62,197.61,5.0582]
[1738926517372,18.24806438,197.71,197.63,5.0575]
[1738926517373,5.0563,197.69,197.63,5.0575]
[1738926517775,16.66776438,197.71,197.61,16.66776438]
[1738926518277,16.66776438,197.71,197.59,13.7052]
[1738926518671,16.66776438,197.71,197.63,0.03297155]
[1738926519072,5.0576,197.64,197.63,0.03297155]
[1738926524277,5.0576,197.64,197.63,8.90297155]
[1738926526274,5.0571,197.65,197.63,8.90297155]
[1738926526674,16.66776438,197.71,197.63,8.90297155]
[1738926527973,16.66776438,197.68,197.63,8.90297155]
[1738926528777,5.0574,197.64,197.63,8.90297155]
[1738926530779,16.66776438,197.68,197.63,8.90297155]
[1738926530977,16.66776438,197.71,197.63,8.90297155]
[1738926531280,19.33666438,197.74,197.63,13.96047155]
[1738926531482,19.33666438,197.74,197.63,8.90297155]
[1738926531980,5.0561,197.69,197.64,5.0573]
[1738926532681,5.0559,197.7,197.65,0.03309692]
[1738926533081,18.19936438,197.74,197.65,0.03309692]
[1738926533581,16.66776438,197.71,197.65,0.03309692]
[1738926533784,5.0569,197.66,197.65,0.03309692]
[1738926534478,5.0569,197.66,197.65,12.32309692]
[1738926535078,5.0587,197.59,197.54,1.5554]
[1738926535282,16.66776438,197.64,197.54,1.5554]
[1738926535878,5.0583,197.61,197.54,1.5554]
[1738926536075,16.66776438,197.64,197.54,3.1234]
[1738926536380,0.03514165,197.6,197.57,0.03882871]
[1738926536981,5.0589,197.59,197.57,0.03882871]
[1738926537677,0.03514165,197.6,197.57,0.03882871]
[1738926537884,5.09354165,197.6,197.57,0.03882871]
[1738926538079,0.03514165,197.6,197.57,0.03882871]
[1738926538688,0.03514165,197.6,197.57,5.09802871]
[1738926539183,0.03514165,197.6,197.57,0.03882871]
[1738926539684,0.03514165,197.6,197.58,5.0589]
[1738926540582,56.14186569,197.68,197.57,16.70659309]
[1738926541680,16.66776438,197.7,197.57,16.70659309]
[1738926542082,16.66776438,197.7,197.57,16.66776438]
[1738926542385,5.057,197.66,197.62,0.0350624]
[1738926542586,16.66776438,197.7,197.62,0.0350624]
[1738926542787,5.0566,197.67,197.62,5.0927624]
[1738926543086,5.0566,197.67,197.62,0.0350624]
[1738926543282,16.66776438,197.7,197.62,0.0350624]
[1738926543487,5.0564,197.68,197.64,5.0573]
[1738926543682,72.80963007,197.73,197.62,0.0350624]
[1738926544586,5.0559,197.7,197.64,5.0572]
[1738926544785,72.80963007,197.73,197.64,5.0572]
[1738926545287,72.80963007,197.73,197.65,0.03317102]
[1738926545688,5.0569,197.67,197.65,0.03317102]
[1738926546690,5.0569,197.66,197.65,0.03317102]
[1738926547988,16.66776438,197.67,197.55,1.4839]
[1738926548293,5.0581,197.62,197.55,1.4839]
[1738926548586,16.66776438,197.67,197.58,5.0589]
[1738926548791,16.66776438,197.67,197.55,9.9639]
[1738926549189,5.09174009,197.63,197.59,0.03819079]
[1738926549387,0.03384009,197.63,197.59,0.03819079]
[1738926549890,0.03384009,197.63,197.59,5.09679079]
[1738926550492,12.11635773,197.69,197.59,0.03819079]
[1738926550686,4.15296418,197.62,197.61,16.66776438]
[1738926550990,17.17275773,197.68,197.63,5.0574]
[1738926551191,12.11635773,197.7,197.61,16.66776438]
[1738926551391,56.14186569,197.71,197.62,1.5547]
[1738926551693,5.0563,197.69,197.65,0.03809835]
[1738926552691,28.78412211,197.73,197.65,0.03809835]
[1738926553297,16.66776438,197.73,197.65,0.03809835]
[1738926553994,12.11635773,197.72,197.65,0.03809835]
[1738926554199,5.0558,197.71,197.65,5.09499835]
[1738926554700,5.056,197.7,197.65,5.09499835]
[1738926556800,5.056,197.7,197.65,0.03809835]
[1738926558297,28.78412211,197.76,197.65,0.03809835]
[1738926558691,28.78412211,197.76,197.65,1.67039835]
[1738926558999,12.11635773,197.76,197.67,16.66776438]
[1738926559298,56.14186569,197.78,197.67,16.66776438]
[1738926559504,56.14186569,197.78,197.7,16.70262654]
[1738926559801,56.14186569,197.78,197.71,3.1822]
[1738926560603,61.19586569,197.78,197.72,5.0553]
[1738926560999,5.0541,197.77,197.72,5.0553]
[1738926561204,56.14186569,197.78,197.71,1.554]
[1738926561397,56.14186569,197.78,197.7,13.65486216]
[1738926562709,5.0553,197.72,197.7,13.65486216]
[1738926562905,16.66776438,197.79,197.7,13.65486216]
[1738926563206,16.66776438,197.76,197.7,13.65486216]
[1738926563407,16.66776438,197.76,197.7,13.62]
[1738926563609,16.66776438,197.76,197.71,0.03434973]
[1738926563798,5.0553,197.72,197.71,0.03434973]
[1738926568016,5.057,197.66,197.61,1.611]
[1738926568817,16.66776438,197.7,197.61,1.611]
[1738926569209,0.03399534,197.67,197.64,0.0337032]
[1738926569513,5.0571,197.65,197.64,0.0337032]
[1738926570610,0.03399534,197.67,197.64,0.0337032]
[1738926571011,5.0571,197.66,197.64,0.0337032]
[1738926571212,0.03399534,197.67,197.64,0.0337032]
[1738926571812,5.057,197.66,197.64,0.0337032]
[1738926574417,5.09069534,197.67,197.64,0.0337032]
[1738926574618,0.03399534,197.67,197.64,0.0337032]
[1738926575018,0.03399534,197.67,197.65,5.0571]
[1738926575217,0.03399534,197.67,197.64,0.0337032]
[1738926575818,5.09079534,197.67,197.64,0.0337032]
[1738926576019,0.03399534,197.67,197.64,0.0337032]
[1738926576719,5.0571,197.65,197.64,0.0337032]
[1738926577223,5.09079534,197.67,197.64,0.0337032]
[1738926579315,5.0571,197.65,197.64,0.0337032]
[1738926579516,0.03399534,197.67,197.64,0.0337032]
[1738926580720,5.0569,197.66,197.64,0.0337032]
[1738926580922,0.03399534,197.67,197.64,0.0337032]
[1738926581819,0.03399534,197.67,197.66,5.0569]
[1738926582321,0.03399534,197.67,197.65,5.0569]
[1738926583019,0.03399534,197.67,197.65,5.0571]
[1738926583822,0.03399534,197.67,197.66,5.0569]
[1738926584121,5.0556,197.71,197.64,16.70146758]
[1738926584316,5.0556,197.71,197.65,3.2317]
[1738926584717,5.0556,197.71,197.68,5.0562]
[1738926584918,56.14186569,197.78,197.67,16.66776438]
[1738926585217,85.07366125,197.8,197.72,5.0552]
[1738926585415,5.0542,197.77,197.67,16.66776438]
[1738926585613,56.14186569,197.8,197.71,0.03371797]
[1738926585823,56.14186569,197.8,197.72,5.0551]
[1738926586022,56.14186569,197.8,197.71,0.03371797]
[1738926586517,5.0542,197.77,197.73,5.0549]
[1738926586722,56.14186569,197.8,197.71,0.03371797]
[1738926587721,5.054,197.78,197.71,0.03371797]
[1738926588022,56.14186569,197.8,197.71,0.03371797]
[1738926588221,234.68219298,197.9,197.72,3.6]
[1738926588428,234.68219298,197.9,197.81,16.66776438]
[1738926588624,56.17223936,197.86,197.81,16.66776438]
[1738926588821,56.17223936,197.86,197.84,16.66776438]
[1738926589121,56.17223936,197.86,197.84,21.71996438]
[1738926590226,56.17223936,197.86,197.84,16.66776438]
[1738926591030,56.17223936,197.86,197.84,21.72006438]
[1738926591227,151.94174657,197.92,197.85,20.36776438]
[1738926591427,209.96836133,197.94,197.91,16.66776438]
[1738926591828,209.96836133,197.94,197.91,16.7030881]